Cogmind - Beta 9.3 @@@ ROGUE MODE // 2019.12.18 @ 08:38:03 // Winter2019/RPGLIKE Player: xk2222 Result: Core destroyed Performance ------------- Evolutions (1) 500 Regions Visited (4) 800 Robots Destroyed (25) 125 Value Destroyed (466) 466 Prototype IDs (1) 20 Alien Tech Used (0) 0 Bonus (-1048) -1048 TOTAL SCORE: 863 Bonus ------- Friendly Fire -1048 Cogmind --------- Core Integrity 0/700 Matter 73/300 Energy 435/455 System Corruption 0% Temperature Cool (693) Movement Walking (125) Location -7/Zion Parts ------- > --- POWER (2) -------- Improved Ion Engine Improved Deuterium Engine > --- PROPULSION (4) --- Aluminum Leg Aluminum Leg Makeshift Leg Enhanced Flexi-carbon Leg > --- UTILITY (3) ------ Makeshift Terrain Scan Processor Makeshift Armor Plating > --- WEAPON (3) ------- Makeshift Shrapnel Gun Makeshift Shrapnel Gun Bore Cannon > --- INVENTORY (0) ---- (None) Peak State ------------ > --- POWER ------------ Improved Ion Engine Improved Deuterium Engine > --- PROPULSION ------- Aluminum Leg Aluminum Leg Enhanced Flexi-carbon Leg Enhanced Flexi-carbon Leg > --- UTILITY ---------- Makeshift Terrain Scan Processor Makeshift Armor Plating > --- WEAPON ----------- Makeshift Shrapnel Gun Makeshift Shrapnel Gun Bore Cannon > --- INVENTORY -------- (None) [Rating: 43] Favorites ----------- Power Improved Ion Engine Engine Improved Ion Engine Propulsion Aluminum Leg Leg Aluminum Leg Wheel Compact Wheel Utility Makeshift Terrain Scan Processor Processor Makeshift Terrain Scan Processor Protection Makeshift Armor Plating Weapon Makeshift Shrapnel Gun Energy Gun Small Laser Ballistic Gun Makeshift Shrapnel Gun Ballistic Cannon Bore Cannon Launcher Mini Grenade Launcher Special Melee Weapon Datajack Build | -11 -10 -9 -9 -7 ------- Run | Scr Mat Mat Min Zio Slots Evolved 8 | 2 1 . 1 4 Power 1 | . . . 1 . Propulsion 3 | 1 . . . 2 Utility 2 | 1 . . . 1 Weapon 2 | . 1 . . 1 Parts Attached 21 | 7 2 3 . 9 Power 4 | 2 . 1 . 1 Engine 4 | 2 . 1 . 1 Core . | . . . . . Reactor . | . . . . . Propulsion 6 | 3 . . . 3 Treads . | . . . . . Leg 5 | 2 . . . 3 Wheel 1 | 1 . . . . Hover . | . . . . . Flight . | . . . . . Utility 2 | . . . . 2 Device . | . . . . . Storage . | . . . . . Processor 1 | . . . . 1 Hackware . | . . . . . Protection 1 | . . . . 1 Artifact . | . . . . . Weapon 9 | 2 2 2 . 3 Energy Gun 1 | 1 . . . . Energy Cannon . | . . . . . Ballistic Gun 5 | 1 1 1 . 2 Ballistic Cannon 1 | . . . . 1 Launcher 1 | . . 1 . . Special Weapon . | . . . . . Impact Weapon . | . . . . . Slashing Weapon . | . . . . . Piercing Weapon . | . . . . . Special Melee Weapon 1 | . 1 . . . Unidentified Prototypes 1 | . . . . 1 Parts Lost . | . . . . . Power . | . . . . . Propulsion . | . . . . . Utility . | . . . . . Weapon . | . . . . . Highest Loss Streak . | . . . . . Average Slot Usage (%) 78 | . 61 71 62 84 Engine 12 | . 14 14 12 11 Leg 24 | . 28 28 25 23 Processor 6 | . . . . 9 Protection 6 | . . . . 9 Ballistic Gun 17 | . 4 14 12 20 Ballistic Cannon 5 | . . . . 8 Launcher 4 | . . 12 12 1 Naked Turns . | . . . . . Heaviest Build 34 | 6 7 11 11 34 Greatest Support 76 | 20 20 20 20 76 Greatest Overweight (x) 1 | 1 . . . 1 Average Overweight (x) . | . . . . . Largest Inventory Capacity . | . . . . . Average Capacity . | . . . . . Most Carried . | . . . . . Average Carried . | . . . . . Final Capacity . | . . . . . Final Carried . | . . . . . Class Distribution -------------------- 48% | Derelict-Gunner 43% | Mutant 8% | Derelict-Mutant Dominant Class ---------------- Mutant | -10/Materials Mutant | -9/Materials Mutant | -9/Mines Derelict-Gunner | -7/Zion Resources | -11 -10 -9 -9 -7 ----------- Run | Scr Mat Mat Min Zio Matter Collected 649 | 236 56 179 . 178 Remotely . | . . . . . Salvage Created 517 | . 61 276 . 180 Parts 60 | . 10 28 . 22 Haulers Intercepted . | . . . . . Recyclers Shooed . | . . . . . Parts Field Recycled . | . . . . . Retrieved Matter . | . . . . . Parts Self-Destructed . | . . . . . Prevented . | . . . . . Kills | -11 -10 -9 -9 -7 ------- Run | Scr Mat Mat Min Zio Combat Hostiles Destroyed 12 | . 3 9 . . Guns 6 | . 3 3 . . AOE 6 | . . 6 . . Classes Destroyed 9 | . 2 5 . 2 Worker 1 | . 1 . . . Builder 3 | . . 3 . . Watcher 1 | . . 1 . . Swarmer 3 | . 3 . . . Grunt 6 | . . 6 . . Duelist 1 | . . 1 . . Sentry 2 | . . 2 . . Enhanced Grunt 2 | . . . . 2 Zionite 5 | . . . . 5 Mutant 1 | . . . . 1 Best Kill Streak 6 | . 2 6 . 3 Combat Bots Only 5 | . 2 5 . . Max Kills in Single Turn 3 | . 1 3 . 2 Gunslinging . | . . . . . Exploded 2 | . . 2 . . Melee . | . . . . . Uniques/NPCs Destroyed . | . . . . . Combat | -11 -10 -9 -9 -7 -------- Run | Scr Mat Mat Min Zio Damage Taken 903 | . 188 274 . 441 Core 758 | . 156 230 . 372 Absorbed by Shields . | . . . . . Redirected to Core 475 | . 96 151 . 228 Core Remaining (%) 87 | 100 74 . . . Volleys Fired 67 | . 30 16 . 21 Largest 3 | . 1 2 . 3 Hottest 105 | . 40 53 . 105 Shots Fired 111 | . 30 26 . 55 Gun 81 | . 30 16 . 35 Cannon 20 | . . . . 20 Launcher 10 | . . 10 . . Special . | . . . . . Kinetic 74 | . 3 16 . 55 Thermal 27 | . 27 . . . Explosive 10 | . . 10 . . Electromagnetic . | . . . . . Robot Hit Streak 7 | . 4 7 . 5 Robot Miss Streak 7 | . 4 2 . 7 Penetration Max 1 | . . . . 1 Secondary Targets . | . . . . . Shots Hit Robots 63 | . 15 16 . 32 Core Hits 43 | . 6 20 . 17 Critical Hits 5 | . . . . 5 Critical Kills 3 | . . . . 3 Critical Parts Destroyed 2 | . . . . 2 Melee Attacks 1 | . 1 . . . Impact . | . . . . . Slashing . | . . . . . Piercing . | . . . . . Sneak Attacks 1 | . 1 . . . Combat Hostiles . | . . . . . Follow-up Attacks . | . . . . . Damage Inflicted 1604 | . 155 884 . 565 Guns 779 | . 155 195 . 429 Cannons 136 | . . . . 136 Explosions 683 | . . 683 . . Melee . | . . . . . Ramming 6 | . . 6 . . Kinetic 786 | . 26 195 . 565 Thermal 129 | . 129 . . . Explosive 683 | . . 683 . . Electromagnetic . | . . . . . Impact . | . . . . . Slashing . | . . . . . Piercing . | . . . . . Highest Corruption . | . . . . . Average Corruption . | . . . . . Corruption Purged . | . . . . . Overload Shots . | . . . . . Overflow Damage 20 | . . 20 . . Projectiles . | . . . . . Explosions 20 | . . 20 . . Melee . | . . . . . Knockbacks . | . . . . . Impact . | . . . . . Kinetic . | . . . . . Secondary . | . . . . . Self-Inflicted Damage 155 | . . 155 . . Shots 4 | . . 4 . . Rammed . | . . . . . Targets Rammed 1 | . . 1 . . Kicked 1 | . . 1 . . Crushed . | . . . . . Highest Temperature 695 | . . 16 . 695 Average Temperature 299 | . . 6 . 329 Received Heat Transfer 87 | . . 60 . 27 Effects 31 | . . . . 31 Shutdowns 10 | . . . . 10 Energy Bleed 3 | . . . . 3 Interference 8 | . . . . 8 Matter Decay 2 | . . . . 2 Damage (minor) 2 | . . . . 2 Damage (major) 5 | . . . . 5 Damage (core) 1 | . . . . 1 Siege Activations . | . . . . . Robots Corrupted . | . . . . . Combat Hostiles . | . . . . . Parts Fried . | . . . . . Impact Corruptions . | . . . . . Robots Melted . | . . . . . Combat Hostiles . | . . . . . Parts Melted . | . . . . . Heat Transferred 300 | . 300 . . . Parts Sabotaged . | . . . . . Parts Stolen . | . . . . . Parts Stripped . | . . . . . Power Chain Reactions . | . . . . . Missiles Intercepted . | . . . . . Alert | -11 -10 -9 -9 -7 ------- Run | Scr Mat Mat Min Zio Peak Influence 304 | . 90 304 40 . Average Influence 90 | . 39 152 40 . Maximum Alert Level 1 | . . 1 . . Low Security (%) 82 | 100 100 63 100 . Level 1 17 | . . 36 . . Level 2 . | . . . . . Level 3 . | . . . . . Level 4 . | . . . . . Level 5 . | . . . . . High Security . | . . . . . Max Security . | . . . . . Squads Dispatched 2 | . . 2 . . Investigation . | . . . . . Extermination . | . . . . . Reinforcement 2 | . . 2 . . Assault . | . . . . . Garrison . | . . . . . Intercept . | . . . . . Construction Impeded 1 | . . 1 . . Haulers Reinforced . | . . . . . Stealth | -11 -10 -9 -9 -7 --------- Run | Scr Mat Mat Min Zio Distress Signals . | . . . . . Communications Jammed . | . . . . . Distress Signals . | . . . . . Times Spotted 25 | . 5 11 . 9 Peak Tracking Total 6 | . 4 6 . 5 Tactical Retreats 2 | . . . . 2 Traps | -11 -10 -9 -9 -7 ------- Run | Scr Mat Mat Min Zio Traps Triggered . | . . . . . Indirectly . | . . . . . Trap Hack Attempts . | . . . . . Triggered . | . . . . . Disarmed . | . . . . . Reprogrammed . | . . . . . Reused . | . . . . . Traps Extracted . | . . . . . Installed . | . . . . . Triggered . | . . . . . Machines | -11 -10 -9 -9 -7 ---------- Run | Scr Mat Mat Min Zio Machines Disabled . | . . . . . Max in Single Turn . | . . . . . Machines Sabotaged . | . . . . . Garrisons Compromised . | . . . . . Overloaded Fab Kills . | . . . . . Fab Network Shutdowns . | . . . . . Hacking | -11 -10 -9 -9 -7 --------- Run | Scr Mat Mat Min Zio Machines Accessed . | . . . . . Terminals . | . . . . . Fabricators . | . . . . . Repair Stations . | . . . . . Recycling Units . | . . . . . Scanalyzers . | . . . . . Garrison Access . | . . . . . Total Hacks . | . . . . . Successful . | . . . . . Failed . | . . . . . Catastrophic . | . . . . . Database Lockouts . | . . . . . Manual 5 | . . . . 5 Terminals . | . . . . . Fabricators . | . . . . . Repair Stations . | . . . . . Recycling Units . | . . . . . Scanalyzers . | . . . . . Garrison Access . | . . . . . Terminal Hacks . | . . . . . Fabricator Hacks . | . . . . . Repair Station Hacks . | . . . . . Recycling Unit Hacks . | . . . . . Scanalyzer . | . . . . . Garrison Access Hacks . | . . . . . Unauthorized Hacks . | . . . . . Terminals . | . . . . . Fabricators . | . . . . . Repair Stations . | . . . . . Recycling Units . | . . . . . Scanalyzers . | . . . . . Garrison Access . | . . . . . Data Cores Recovered . | . . . . . Used . | . . . . . Hacking Detections . | . . . . . Full Trace Events . | . . . . . Feedback Events . | . . . . . Feedback Blocked . | . . . . . Robot Schematics Acquired . | . . . . . Robots Built . | . . . . . Matter . | . . . . . Time . | . . . . . Total Robot Build Rating . | . . . . . Part Schematics Acquired . | . . . . . Parts Built . | . . . . . Matter . | . . . . . Time . | . . . . . Total Part Build Rating . | . . . . . Parts Repaired . | . . . . . Time . | . . . . . Parts Recycled . | . . . . . Recycled Matter . | . . . . . Retrieved Matter . | . . . . . Retrieved Components . | . . . . . Parts Scanalyzed . | . . . . . Part Schematics Acquired . | . . . . . Parts Damaged . | . . . . . Bothacking | -11 -10 -9 -9 -7 ------------ Run | Scr Mat Mat Min Zio Used RIF Installer . | . . . . . Robots Hacked 1 | . 1 . . . Non-combat 1 | . 1 . . . Combat . | . . . . . Robot Hacks Applied 1 | . 1 . . . parse_system 1 | . 1 . . . Relay Couplers Released . | . . . . . Robots Rewired . | . . . . . Allies Hacked . | . . . . . Hacks Repelled . | . . . . . Allies | -11 -10 -9 -9 -7 -------- Run | Scr Mat Mat Min Zio Total Allies 2 | . . . . 2 Largest Group 2 | . . . . 2 Highest-Rated Group 188 | . . . . 188 Highest-Rated Ally 94 | . . . . 94 Total Orders . | . . . . . Ally Attacks . | . . . . . Total Damage . | . . . . . Kills . | . . . . . Allies Corrupted . | . . . . . Allies Melted . | . . . . . Intel | -11 -10 -9 -9 -7 ------- Run | Scr Mat Mat Min Zio Robot Analysis Total . | . . . . . Derelict Logs Recovered 1 | . . . . 1 Drone Launches . | . . . . . Drone Recoveries . | . . . . . Exploration | -11 -10 -9 -9 -7 ------------- Run | Scr Mat Mat Min Zio Turns Passed 2310 | 80 171 407 184 1468 Spaces Moved 1554 | 48 89 295 144 978 Core 5 | 5 . . . . Treads . | . . . . . Legs 1529 | 23 89 295 144 978 Wheels 20 | 20 . . . . Hover . | . . . . . Flight . | . . . . . Fastest Speed 50 | 50 120 120 120 120 Average Speed 133 | 108 120 120 120 141 Slowest Speed 150 | 120 120 120 120 150 Overloaded Moves . | . . . . . Propulsion Burnouts . | . . . . . Robots Hopped . | . . . . . Cave-ins Triggered . | . . . . . Exploration Rate (%) 31 | 5 20 30 28 75 Regions Visited 4 Branch Regions 2 Pre-discovered Areas . | . . . . . Known Exits Taken . | . . . . . Unknown Exits Taken 4 | 1 1 1 1 . Scrap Searched 2 | . . . . 2 Spaces Dug . | . . . . . Terrain Destroyed 100 | . . 100 . . Melee . | . . . . . Projectile . | . . . . . AOE 100 | . . 100 . . Actions | -11 -10 -9 -9 -7 --------- Run | Scr Mat Mat Min Zio Total 1690 | 74 122 323 155 1016 Wait 41 | 17 . 6 12 6 Move 1550 | 47 88 294 143 978 Hop . | . . . . . Pick Up . | . . . . . Fast Attach 18 | 7 2 1 . 8 Attach . | . . . . . Detach . | . . . . . Swap 3 | . . 2 . 1 Drop 9 | 3 1 3 . 2 Fire 67 | . 30 16 . 21 Melee 1 | . 1 . . . Ram . | . . . . . Kick 1 | . . 1 . . Crush . | . . . . . Escape Stasis . | . . . . . Rewire . | . . . . . Trap . | . . . . . Miscellaneous . | . . . . . Route ------- -11/Scrapyard -10/Materials -9/Materials -9/Mines -7/Zion History --------- Turn | Location | Event 35 | -11/Scrapyard | Discovered new exit (range 15) 41 | -11/Scrapyard | Upgraded with Utility slot (x1) 50 | -11/Scrapyard | Upgraded with Propulsion slot (x1) 81 | -11/Scrapyard | Entered Materials 81 | -10/Materials | Upgraded with Weapon slot (x1) 234 | -10/Materials | Discovered new exit (range 16) 252 | -10/Materials | Entered another Materials area 254 | -9/Materials | Reached level 2 325 | -9/Materials | Build established: Mutant 499 | -9/Materials | Core integrity fell below 50% 544 | -9/Materials | Reached level 3 641 | -9/Materials | Discovered new exit (range 16) 659 | -9/Materials | Entered Mines 679 | -9/Mines | Upgraded with Power slot (x1) 688 | -9/Mines | Met a Derelict bent on vengeance 834 | -9/Mines | A Derelict revealed a hidden shortcut to a safe place 843 | -9/Mines | Entered Zion 1132 | -7/Zion | Upgraded with Weapon slot (x1) 1438 | -7/Zion | Build established: Derelict-Gunner 1721 | -7/Zion | Learned 4 Factory zone layouts 2129 | -7/Zion | Given A8's code to call for help 2177 | -7/Zion | Enhanced Grunt warped into view, answering call for help 2183 | -7/Zion | Enhanced Grunt warped into view, answering call for help 2209 | -7/Zion | Attacked by Zionites 2220 | -7/Zion | Upgraded with Propulsion slot (x1) 2233 | -7/Zion | Core integrity fell below 20% 2239 | -7/Zion | Upgraded with Propulsion slot (x1) 2239 | -7/Zion | Upgraded with Utility slot (x1) 2312 | -7/Zion | Core destroyed Last Messages --------------- 02295_ HV Slug penetrates Twisted Machinery. 02296_ Overheating: Enh. Flexi-carbon Leg damaged (-30). 02296_ Overheating: Aluminum Leg damaged (-24). 02296_ Overheating: Bore Cannon damaged (-19). 02299_ Overheating: Imp. Deuterium Engine damaged (-40). 02299_ Overheating: Mak. Shrapnel Gun damaged (-27). 02299_ X8-W3U(z) destroyed. 02300_ Overheating: Energy bleed (-104). 02303_ Acquired Mak. Leg. 02304_ Power failure, Imp. Ion Engine shutdown. 02308_ Power failure, Imp. Deuterium Engine shutdown. 02308_ HV Slug penetrates Twisted Machinery. 02308_ HV Slug penetrates Wall. 02308_ QW-EOL(z) destroyed. 02309_ Overheating: System interference. 02309_ Bore Cannon temporarily disabled. 02309_ Mak. Terrain Scan Processor temporarily disabled. 02309_ Mak. Shrapnel Gun temporarily disabled. 02312_ Power failure, Imp. Ion Engine shutdown. 02312_ Overheating: Core damaged (-105). Map ----- +----------------------------------------------------+ | ?????????????????????????????????????????????????? | | ?????????????????????????????????????????????????? | | ?????????????????????????????????????????????????? | | ?????????????????????????????????????????????????? | | ?????????????????????????????????????????????????? | | ?????????????????????????????????????????????????? | | ?????????????????????????????????????????????????? | | ?????????????????????????????????????????????????? | | ?????????????????????????????????????????????????? | | ?????????????????????????????????????????????????? | | ???????????????????????????????????????????####### | | ???????????????????????????????????????????#[! |]# | | ???????????????????????????????????????????#[ /# | | ???????????????????????????????????????????#[ /# | | ???????????????????????????????????????????##" "## | | ????????????????????????????????????????????# #? | | ?????????????????????##??????###???????????## ## | | ?????????????????????#"#######"########????# # | | ????????????????????##"""""##<<<"##"#"##??## # | | ???????????????????##"""""""#< """#"####""#### | | ????????????#????###"#" """* " """##""""# | | ??????????###"####""""" %= """""""" """ | | ?????????##"""""""" = % z """" "" | | ??????????""#"" ="" """ | | ??????????#""""" /= " #"" """ | | ??????????"]X"""" *%@ """""""" """" | | ??????????#%!""#"" " """""""" $""""" | | ?????????## %" """"" """"#"#"""" """"" | | ?????????" !!!! [ "#""##"##" """"" | | ?????????"=! !/ * """##""#""" " | | ?????????# " """" ""#"#""""" | | ???????#"""""""#"" """""""#"" "" | | ??????#"#""""####" ""#" """" """" | | ??????#?##"#"#??#"" """"" "" "" ""#"" | | ?????????#####??#"""""" """""""" | | ????????????????##"""" | | ?????????????????###"" " | | ???????????????????##"" " | | ??????????????##"#??##"""""" "" " """""""#"" | | ?????????????##"#""??#"#"#"" "" """"""""""" | | ?????????????#"""""#?####""" ""#""#""""""" | | ??????????????#"" ""###"""#" """##########" | | ?????????###??#" """""""""" """"#???????## | | ?????????# #"" """" """##????????? | | ?????????#= [ """" """##????????? | | ?????????# " """ ""#????????? | | ??????????#! """""" "##????????? | | ??????????#! ## """"""" ""#????????? | | ??????????????## "" """"#????????? | | ???????????????#### """""" """ """##????????? | +----------------------------------------------------+ Best States ------------- Heat Dissipation 25 Energy Generation 23 Energy Capacity 455 Matter Stores 300 Matter Capacity 300 Sight Range 16 Terrain Scan Density 135 Armor Coverage 100 Evasion (%) 40 Item Schematics ----------------- None Robot Schematics ------------------ None Fabricated ------------ Nothing Alien Tech Used ----------------- None Achievements -------------- Collateral Damage Help From High Places Robot Respite Challenges ------------ None RPGLIKE | -11 -10 -9 -9 -7 --------- Run | Scr Mat Mat Min Zio Levels Raised 2 | . . 2 . . XP Earned 7035 | 3000 350 2685 500 500 XP Spent 5560 | 1000 500 . 500 3560 Upgrades 10 | 2 1 . 1 6 Power Slot 1 | . . . 1 . Propulsion Slot 3 | 1 . . . 2 Utility Slot 2 | 1 . . . 1 Weapon Slot 2 | . 1 . . 1 Core Integrity 2 | . . . . 2 Protomatter Created 256 | . 18 129 . 109 Protomatter Decayed 116 | . 18 44 . 54 Game ------ Seed NeutrinoAnalysisFlakker Manual? 0 Play Time 00:32:26 Cumulative 14.4 hours Start 2019.12.17 @ 16:32:49 End 2019.12.18 @ 08:38:03 Sessions 6 Manual Loads 0 Difficulty Rogue Special Mode Winter2019/RPGLIKE Game No. 40 Rogue 40 Adventurer 0 Explorer 0 Win Type - Total 0 Types 0/0/0/0/0/0/0 Lore% 5 Gallery% 18 Achievement% 12 Wizard Run 0 Options --------- ASCII 0 Keyboard 0 Movement Mouse Keybinds 0 Fullscreen 2 Font 18/SmallcapsGlow Map View 76x50 Tactical HUD 1 Map Filters NONE Filters NONE Steam 1 RUN: 35b9c26c-5a64-4b4e-a242-c4f0f13d2dcd